[Event "Titled Tuesday Blitz September 13 Late 2022"]
[White "Ahn, Hongjin"]
[Black "Pranav, V"]
[WhiteFideId "13201492"]
[BlackFideId "25060783"]
[WhiteElo "1873"]
[BlackElo "2390"]
[Result "0-1"]
[Round "01"]
[TimeControl "180+1"]
[Date "2022.09.13"]
[WhiteClock "0:00:02"]
[BlackClock "0:01:33"]

1. c4 {[%clk 0:02:59]}  c5 {[%clk 0:02:53]} 2. Nf3 {[%clk 0:02:57]}  Nc6 {[%clk 0:02:53]} 3. d4 {[%clk 0:02:55]}  cxd4 {[%clk 0:02:54]} 4. Nxd4 {[%clk 0:02:56]}  Nf6 {[%clk 0:02:55]} 5. Nc3 {[%clk 0:02:56]}  e5 {[%clk 0:02:54]} 6. Ndb5 {[%clk 0:02:54]}  d6 {[%clk 0:02:50]} 7. Bg5 {[%clk 0:02:53]}  a6 {[%clk 0:02:50]} 8. Na3 {[%clk 0:02:52]}  Be7 {[%clk 0:02:49]} 9. g3 {[%clk 0:02:52]}  O-O {[%clk 0:02:48]} 10. Bg2 {[%clk 0:02:51]}  Be6 {[%clk 0:02:48]} 11. O-O {[%clk 0:02:50]}  Rc8 {[%clk 0:02:47]} 12. b3 {[%clk 0:02:44]}  h6 {[%clk 0:02:46]} 13. Bxf6 {[%clk 0:02:39]}  Bxf6 {[%clk 0:02:47]} 14. Nd5 {[%clk 0:02:34]}  Bxd5 {[%clk 0:02:35]} 15. Bxd5 {[%clk 0:02:32]}  e4 {[%clk 0:02:32]} 16. Rb1 {[%clk 0:02:23]}  e3 {[%clk 0:02:27]} 17. fxe3 {[%clk 0:02:00]}  Nb4 {[%clk 0:02:18]} 18. Bxb7 {[%clk 0:01:33]}  Rb8 {[%clk 0:02:17]} 19. Bf3 {[%clk 0:01:14]}  Nxa2 {[%clk 0:02:17]} 20. Qc2 {[%clk 0:00:24]}  Nc3 {[%clk 0:02:04]} 21. Rbc1 {[%clk 0:00:22]}  Qb6 {[%clk 0:02:03]} 22. Kh1 {[%clk 0:00:16]}  Qxb3 {[%clk 0:02:02]} 23. Qxb3 {[%clk 0:00:16]}  Rxb3 {[%clk 0:02:03]} 24. Nc2 {[%clk 0:00:17]}  a5 {[%clk 0:01:57]} 25. Nd4 {[%clk 0:00:15]}  Bxd4 {[%clk 0:01:57]} 26. exd4 {[%clk 0:00:16]}  a4 {[%clk 0:01:58]} 27. Rc2 {[%clk 0:00:14]}  a3 {[%clk 0:01:57]} 28. Ra1 {[%clk 0:00:14]}  Rc8 {[%clk 0:01:42]} 29. Rac1 {[%clk 0:00:07]}  a2 {[%clk 0:01:41]} 30. Kg2 {[%clk 0:00:05]}  Rb1 {[%clk 0:01:37]} 31. Rxc3 {[%clk 0:00:05]}  a1=Q {[%clk 0:01:37]} 32. R1c2 {[%clk 0:00:04]}  Rg1+ {[%clk 0:01:36]} 33. Kh3 {[%clk 0:00:05]}  Qf1+ {[%clk 0:01:36]} 34. Kh4 {[%clk 0:00:04]}  Qf2 {[%clk 0:01:35]} 35. e4 {[%clk 0:00:03]}  Qxd4 {[%clk 0:01:33]} 36. Kh3 {[%clk 0:00:02]} 0-1


[Site "https://www.chess.com"]

[Event "Titled Tuesday Blitz September 13 Late 2022"]
[White "Bodnar, Nikolay"]
[Black "Sadhwani, Raunak"]
[WhiteFideId "14106469"]
[BlackFideId "35093487"]
[WhiteElo "2283"]
[BlackElo "2656"]
[Result "0-1"]
[Round "01"]
[TimeControl "180+1"]
[Date "2022.09.13"]
[WhiteClock "0:00:03"]
[BlackClock "0:01:04"]

1. c4 {[%clk 0:03:00]}  b6 {[%clk 0:02:58]} 2. g3 {[%clk 0:02:59]}  Bb7 {[%clk 0:02:59]} 3. Nf3 {[%clk 0:02:59]}  e5 {[%clk 0:02:58]} 4. Bg2 {[%clk 0:02:59]}  e4 {[%clk 0:02:59]} 5. Nd4 {[%clk 0:02:58]}  Nf6 {[%clk 0:02:58]} 6. Nc3 {[%clk 0:02:58]}  Bc5 {[%clk 0:02:55]} 7. Nc2 {[%clk 0:02:55]}  h5 {[%clk 0:02:53]} 8. d4 {[%clk 0:02:44]}  Be7 {[%clk 0:02:53]} 9. d5 {[%clk 0:02:44]}  h4 {[%clk 0:02:48]} 10. Nxe4 {[%clk 0:02:43]}  Nxe4 {[%clk 0:02:45]} 11. Bxe4 {[%clk 0:02:44]}  Na6 {[%clk 0:02:45]} 12. Be3 {[%clk 0:02:31]}  Bf6 {[%clk 0:02:43]} 13. Bd4 {[%clk 0:02:27]}  Qe7 {[%clk 0:02:40]} 14. Bf3 {[%clk 0:02:27]}  O-O-O {[%clk 0:02:40]} 15. Bxf6 {[%clk 0:02:24]}  gxf6 {[%clk 0:02:39]} 16. Qd2 {[%clk 0:02:21]}  Qc5 {[%clk 0:02:22]} 17. Qd4 {[%clk 0:02:11]}  Qa5+ {[%clk 0:02:22]} 18. Qd2 {[%clk 0:02:11]}  Qc5 {[%clk 0:02:23]} 19. b3 {[%clk 0:01:58]}  Rde8 {[%clk 0:02:17]} 20. e3 {[%clk 0:01:53]}  Qd6 {[%clk 0:01:54]} 21. O-O-O {[%clk 0:01:49]}  Nc5 {[%clk 0:01:55]} 22. Nd4 {[%clk 0:01:45]}  a6 {[%clk 0:01:55]} 23. Qc3 {[%clk 0:01:25]}  Qe5 {[%clk 0:01:51]} 24. Ne2 {[%clk 0:01:23]}  Qf5 {[%clk 0:01:46]} 25. Nd4 {[%clk 0:01:23]}  Qe5 {[%clk 0:01:46]} 26. Ne2 {[%clk 0:01:19]}  Qg5 {[%clk 0:01:45]} 27. Kb2 {[%clk 0:01:12]}  a5 {[%clk 0:01:44]} 28. g4 {[%clk 0:00:57]}  h3 {[%clk 0:01:44]} 29. Ng3 {[%clk 0:00:55]}  Kb8 {[%clk 0:01:37]} 30. Rhe1 {[%clk 0:00:55]}  d6 {[%clk 0:01:37]} 31. Be2 {[%clk 0:00:46]}  Bc8 {[%clk 0:01:34]} 32. f4 {[%clk 0:00:47]}  Qg6 {[%clk 0:01:34]} 33. Qc2 {[%clk 0:00:26]}  Rxe3 {[%clk 0:01:34]} 34. Qxg6 {[%clk 0:00:15]}  fxg6 {[%clk 0:01:34]} 35. f5 {[%clk 0:00:11]}  gxf5 {[%clk 0:01:26]} 36. gxf5 {[%clk 0:00:12]}  Rhe8 {[%clk 0:01:26]} 37. Kc2 {[%clk 0:00:12]}  a4 {[%clk 0:01:18]} 38. b4 {[%clk 0:00:05]}  Na6 {[%clk 0:01:18]} 39. Kd2 {[%clk 0:00:03]}  Nxb4 {[%clk 0:01:18]} 40. Bg4 {[%clk 0:00:03]}  Rd3+ {[%clk 0:01:11]} 41. Kc1 {[%clk 0:00:02]}  Nxa2+ {[%clk 0:01:10]} 42. Kb2 {[%clk 0:00:02]}  Rxe1 {[%clk 0:01:05]} 43. Rxd3 {[%clk 0:00:03]}  Nb4 {[%clk 0:01:06]} 44. Rd2 {[%clk 0:00:02]}  Re3 {[%clk 0:01:04]} 45. Bxh3 {[%clk 0:00:02]}  a3+ {[%clk 0:01:05]} 46. Kc1 {[%clk 0:00:02]}  Re1+ {[%clk 0:01:03]} 47. Rd1 {[%clk 0:00:02]}  Rxd1+ {[%clk 0:01:03]} 48. Kxd1 {[%clk 0:00:03]}  a2 {[%clk 0:01:04]} 0-1


[Site "https://www.chess.com"]

[Event "Titled Tuesday Blitz September 13 Late 2022"]
[White "Bortnyk, Mykola"]
[Black "Mortazavi, Ali"]
[WhiteFideId "14120836"]
[BlackFideId "401323"]
[WhiteElo "2582"]
[BlackElo "2339"]
[Result "1-0"]
[Round "01"]
[TimeControl "180+1"]
[Date "2022.09.13"]
[WhiteClock "0:00:54"]
[BlackClock "0:00:02"]

1. c4 {[%clk 0:03:00]}  Nf6 {[%clk 0:02:59]} 2. Nc3 {[%clk 0:03:00]}  g6 {[%clk 0:02:59]} 3. e4 {[%clk 0:02:57]}  d6 {[%clk 0:03:00]} 4. d3 {[%clk 0:02:53]}  Bg7 {[%clk 0:03:00]} 5. h3 {[%clk 0:02:50]}  O-O {[%clk 0:03:00]} 6. Be3 {[%clk 0:02:50]}  c5 {[%clk 0:02:59]} 7. Qd2 {[%clk 0:02:48]}  Nc6 {[%clk 0:02:56]} 8. Nge2 {[%clk 0:02:47]}  a6 {[%clk 0:02:47]} 9. Bh6 {[%clk 0:02:42]}  Rb8 {[%clk 0:02:35]} 10. Bxg7 {[%clk 0:02:40]}  Kxg7 {[%clk 0:02:35]} 11. Ng3 {[%clk 0:02:24]}  b5 {[%clk 0:02:27]} 12. h4 {[%clk 0:02:24]}  h5 {[%clk 0:02:14]} 13. cxb5 {[%clk 0:02:17]}  axb5 {[%clk 0:02:14]} 14. Be2 {[%clk 0:02:17]}  Nd4 {[%clk 0:02:09]} 15. Bd1 {[%clk 0:02:16]}  e5 {[%clk 0:01:43]} 16. f4 {[%clk 0:02:05]}  b4 {[%clk 0:01:12]} 17. Nce2 {[%clk 0:01:58]}  Ng4 {[%clk 0:01:09]} 18. f5 {[%clk 0:01:50]}  b3 {[%clk 0:01:05]} 19. Nxd4 {[%clk 0:01:46]}  cxd4 {[%clk 0:01:03]} 20. Bxb3 {[%clk 0:01:47]}  Ne3 {[%clk 0:00:49]} 21. Nf1 {[%clk 0:01:46]}  gxf5 {[%clk 0:00:46]} 22. Nxe3 {[%clk 0:01:46]}  dxe3 {[%clk 0:00:46]} 23. Qxe3 {[%clk 0:01:47]}  f4 {[%clk 0:00:47]} 24. Qd2 {[%clk 0:01:44]}  Bg4 {[%clk 0:00:46]} 25. Rc1 {[%clk 0:01:42]}  f5 {[%clk 0:00:39]} 26. Rc6 {[%clk 0:01:34]}  Rb6 {[%clk 0:00:36]} 27. Qc3 {[%clk 0:01:29]}  Rxc6 {[%clk 0:00:26]} 28. Qxc6 {[%clk 0:01:30]}  Qf6 {[%clk 0:00:25]} 29. Kd2 {[%clk 0:01:24]}  Kh8 {[%clk 0:00:25]} 30. a4 {[%clk 0:01:17]}  f3 {[%clk 0:00:25]} 31. gxf3 {[%clk 0:01:16]}  Qh6+ {[%clk 0:00:25]} 32. Kc2 {[%clk 0:01:14]}  Bxf3 {[%clk 0:00:25]} 33. Re1 {[%clk 0:01:08]}  fxe4 {[%clk 0:00:25]} 34. dxe4 {[%clk 0:01:08]}  Bg4 {[%clk 0:00:24]} 35. Kb1 {[%clk 0:01:06]}  Rc8 {[%clk 0:00:21]} 36. Qd5 {[%clk 0:01:03]}  Qf4 {[%clk 0:00:16]} 37. Ka2 {[%clk 0:01:01]}  Qf2 {[%clk 0:00:15]} 38. Rc1 {[%clk 0:01:00]}  Rf8 {[%clk 0:00:13]} 39. Qxd6 {[%clk 0:01:00]}  Qf4 {[%clk 0:00:09]} 40. Rc5 {[%clk 0:00:56]}  Re8 {[%clk 0:00:08]} 41. Qg6 {[%clk 0:00:55]}  Rf8 {[%clk 0:00:02]} 42. Rc7 {[%clk 0:00:54]} 1-0


[Site "https://www.chess.com"]

[Event "Titled Tuesday Blitz September 13 Late 2022"]
[White "Boruchovsky, Avital"]
[Black "Crevatin, Leo"]
[WhiteFideId "2800055"]
[BlackFideId "1726307"]
[WhiteElo "2466"]
[BlackElo "2156"]
[Result "1-0"]
[Round "01"]
[TimeControl "180+1"]
[Date "2022.09.13"]
[WhiteClock "0:00:13"]
[BlackClock "0:00:02"]

1. e4 {[%clk 0:03:00]}  c5 {[%clk 0:02:59]} 2. Nf3 {[%clk 0:03:00]}  d6 {[%clk 0:02:58]} 3. Bb5+ {[%clk 0:02:58]}  Bd7 {[%clk 0:02:58]} 4. Bxd7+ {[%clk 0:02:58]}  Nxd7 {[%clk 0:02:59]} 5. O-O {[%clk 0:02:58]}  Ngf6 {[%clk 0:02:59]} 6. Qe2 {[%clk 0:02:59]}  e6 {[%clk 0:02:59]} 7. c3 {[%clk 0:02:58]}  Be7 {[%clk 0:02:59]} 8. d4 {[%clk 0:02:59]}  O-O {[%clk 0:02:59]} 9. Rd1 {[%clk 0:02:59]}  Qc7 {[%clk 0:02:42]} 10. Nbd2 {[%clk 0:02:51]}  cxd4 {[%clk 0:02:33]} 11. cxd4 {[%clk 0:02:52]}  Rac8 {[%clk 0:02:26]} 12. Nf1 {[%clk 0:02:43]}  Qc2 {[%clk 0:02:17]} 13. N3d2 {[%clk 0:02:13]}  Nb6 {[%clk 0:01:51]} 14. Ne3 {[%clk 0:02:12]}  Qc6 {[%clk 0:01:46]} 15. f3 {[%clk 0:02:10]}  d5 {[%clk 0:01:36]} 16. e5 {[%clk 0:02:10]}  Ne8 {[%clk 0:01:29]} 17. Nb3 {[%clk 0:02:08]}  Nc4 {[%clk 0:01:22]} 18. Nf1 {[%clk 0:01:59]}  Nc7 {[%clk 0:01:19]} 19. Bf4 {[%clk 0:01:54]}  Qb5 {[%clk 0:01:09]} 20. Rac1 {[%clk 0:01:51]}  Na6 {[%clk 0:01:01]} 21. Bd2 {[%clk 0:01:30]}  Qa4 {[%clk 0:00:54]} 22. Bc3 {[%clk 0:00:59]}  Qxa2 {[%clk 0:00:52]} 23. Qc2 {[%clk 0:00:52]}  Qa4 {[%clk 0:00:51]} 24. Ra1 {[%clk 0:00:52]}  Qb5 {[%clk 0:00:50]} 25. Nc1 {[%clk 0:00:50]}  Qd7 {[%clk 0:00:36]} 26. Qf2 {[%clk 0:00:48]}  Ra8 {[%clk 0:00:34]} 27. Nd3 {[%clk 0:00:48]}  Rfc8 {[%clk 0:00:32]} 28. Ng3 {[%clk 0:00:48]}  g6 {[%clk 0:00:25]} 29. Ne2 {[%clk 0:00:43]}  Nc7 {[%clk 0:00:24]} 30. b3 {[%clk 0:00:39]}  Nb6 {[%clk 0:00:22]} 31. Bb4 {[%clk 0:00:37]}  Bxb4 {[%clk 0:00:20]} 32. Nxb4 {[%clk 0:00:38]}  Nb5 {[%clk 0:00:19]} 33. Nd3 {[%clk 0:00:36]}  Qe7 {[%clk 0:00:15]} 34. h4 {[%clk 0:00:26]}  Nd7 {[%clk 0:00:14]} 35. h5 {[%clk 0:00:26]}  Nc3 {[%clk 0:00:12]} 36. Nxc3 {[%clk 0:00:18]}  Rxc3 {[%clk 0:00:13]} 37. Qd2 {[%clk 0:00:19]}  Rc6 {[%clk 0:00:12]} 38. b4 {[%clk 0:00:16]}  b6 {[%clk 0:00:09]} 39. Nf4 {[%clk 0:00:15]}  Nf8 {[%clk 0:00:08]} 40. hxg6 {[%clk 0:00:14]}  hxg6 {[%clk 0:00:06]} 41. Rdc1 {[%clk 0:00:13]}  Rac8 {[%clk 0:00:06]} 42. Rxc6 {[%clk 0:00:13]}  Rxc6 {[%clk 0:00:06]} 43. Ne2 {[%clk 0:00:13]}  Qc7 {[%clk 0:00:06]} 44. b5 {[%clk 0:00:12]}  Rc4 {[%clk 0:00:06]} 45. Qd3 {[%clk 0:00:13]}  Nh7 {[%clk 0:00:05]} 46. Qe3 {[%clk 0:00:13]}  Kg7 {[%clk 0:00:05]} 47. Kh2 {[%clk 0:00:13]}  Rc2 {[%clk 0:00:05]} 48. Rh1 {[%clk 0:00:13]}  Qc4 {[%clk 0:00:05]} 49. Kg3 {[%clk 0:00:13]}  g5 {[%clk 0:00:03]} 50. Nf4 {[%clk 0:00:12]}  gxf4+ {[%clk 0:00:03]} 51. Qxf4 {[%clk 0:00:13]}  Qd3 {[%clk 0:00:02]} 52. Rh4 {[%clk 0:00:12]}  Nf8 {[%clk 0:00:01]} 53. Qh6+ {[%clk 0:00:12]}  Kg8 {[%clk 0:00:02]} 54. Qh8# {[%clk 0:00:13]} 1-0


[Site "https://www.chess.com"]

[Event "Titled Tuesday Blitz September 13 Late 2022"]
[White "Buchenau, Frank"]
[Black "Pulpan, Jakub"]
[WhiteFideId "4604350"]
[BlackFideId "302759"]
[WhiteElo "2157"]
[BlackElo "2461"]
[Result "1-0"]
[Round "01"]
[TimeControl "180+1"]
[Date "2022.09.13"]
[WhiteClock "0:01:21"]
[BlackClock "0:02:17"]

1. e4 {[%clk 0:02:58]}  e5 {[%clk 0:02:57]} 2. Bc4 {[%clk 0:02:57]}  Nf6 {[%clk 0:02:56]} 3. d3 {[%clk 0:02:57]}  b6 {[%clk 0:02:57]} 4. Nf3 {[%clk 0:02:58]}  Bd6 {[%clk 0:02:51]} 5. d4 {[%clk 0:02:54]}  Nc6 {[%clk 0:02:51]} 6. d5 {[%clk 0:02:49]}  Ne7 {[%clk 0:02:51]} 7. Bd3 {[%clk 0:02:48]}  Ng6 {[%clk 0:02:51]} 8. O-O {[%clk 0:02:47]}  a6 {[%clk 0:02:50]} 9. Nbd2 {[%clk 0:02:46]}  Be7 {[%clk 0:02:43]} 10. c4 {[%clk 0:02:38]}  d6 {[%clk 0:02:44]} 11. Nb1 {[%clk 0:02:32]}  Nh5 {[%clk 0:02:43]} 12. g3 {[%clk 0:02:24]}  Bh3 {[%clk 0:02:43]} 13. Re1 {[%clk 0:02:24]}  O-O {[%clk 0:02:43]} 14. Nc3 {[%clk 0:02:21]}  Qd7 {[%clk 0:02:40]} 15. Ng5 {[%clk 0:02:16]}  Nf6 {[%clk 0:02:33]} 16. Nxh3 {[%clk 0:02:15]}  Qxh3 {[%clk 0:02:34]} 17. Bf1 {[%clk 0:02:11]}  Rfb8 {[%clk 0:02:35]} 18. Bxh3 {[%clk 0:02:10]}  b5 {[%clk 0:02:26]} 19. cxb5 {[%clk 0:02:08]}  axb5 {[%clk 0:02:27]} 20. b4 {[%clk 0:02:06]}  h5 {[%clk 0:02:23]} 21. Bf1 {[%clk 0:02:05]}  h4 {[%clk 0:02:24]} 22. Bxb5 {[%clk 0:02:04]}  h3 {[%clk 0:02:22]} 23. Bc6 {[%clk 0:02:03]}  Ra7 {[%clk 0:02:22]} 24. Nb5 {[%clk 0:02:01]}  Ra6 {[%clk 0:02:21]} 25. Nxc7 {[%clk 0:01:55]}  Ra7 {[%clk 0:02:21]} 26. Nb5 {[%clk 0:01:54]}  Ra6 {[%clk 0:02:21]} 27. a4 {[%clk 0:01:53]}  Bd8 {[%clk 0:02:21]} 28. f3 {[%clk 0:01:49]}  Ne7 {[%clk 0:02:22]} 29. Qc2 {[%clk 0:01:46]}  Nxc6 {[%clk 0:02:21]} 30. dxc6 {[%clk 0:01:46]}  Rc8 {[%clk 0:02:22]} 31. c7 {[%clk 0:01:45]}  Bxc7 {[%clk 0:02:21]} 32. Nxc7 {[%clk 0:01:43]}  Ra7 {[%clk 0:02:21]} 33. Bg5 {[%clk 0:01:35]}  Raxc7 {[%clk 0:02:21]} 34. Qd3 {[%clk 0:01:34]}  Rc2 {[%clk 0:02:21]} 35. Re2 {[%clk 0:01:33]}  R2c3 {[%clk 0:02:20]} 36. Qxd6 {[%clk 0:01:24]}  Rxf3 {[%clk 0:02:21]} 37. Bxf6 {[%clk 0:01:24]}  Rxf6 {[%clk 0:02:21]} 38. Qxe5 {[%clk 0:01:21]}  Rcc6 {[%clk 0:02:17]} 39. b5 {[%clk 0:01:21]}  Rce6 {[%clk 0:02:17]} 40. Qb8+ {[%clk 0:01:21]} 1-0


[Site "https://www.chess.com"]

[Event "Titled Tuesday Blitz September 13 Late 2022"]
[White "Forgacs, Attila Jr."]
[Black "Gokerkan, Cem Kaan"]
[WhiteFideId "773654"]
[BlackFideId "6336760"]
[WhiteElo "2062"]
[BlackElo "2364"]
[Result "0-1"]
[Round "01"]
[TimeControl "180+1"]
[Date "2022.09.13"]
[WhiteClock "0:00:08"]
[BlackClock "0:00:31"]

1. e4 {[%clk 0:03:00]}  Nf6 {[%clk 0:02:59]} 2. d3 {[%clk 0:03:00]}  d5 {[%clk 0:02:58]} 3. exd5 {[%clk 0:03:00]}  Nxd5 {[%clk 0:02:58]} 4. g3 {[%clk 0:03:00]}  g6 {[%clk 0:02:55]} 5. Bg2 {[%clk 0:03:01]}  Bg7 {[%clk 0:02:55]} 6. Nf3 {[%clk 0:03:00]}  O-O {[%clk 0:02:55]} 7. O-O {[%clk 0:03:00]}  c5 {[%clk 0:02:42]} 8. Re1 {[%clk 0:02:59]}  Nc6 {[%clk 0:02:42]} 9. Nbd2 {[%clk 0:02:48]}  Re8 {[%clk 0:02:39]} 10. Ne4 {[%clk 0:02:48]}  b6 {[%clk 0:02:37]} 11. c3 {[%clk 0:02:37]}  Bb7 {[%clk 0:02:29]} 12. Qe2 {[%clk 0:02:22]}  Qd7 {[%clk 0:02:25]} 13. Be3 {[%clk 0:02:10]}  Rad8 {[%clk 0:02:19]} 14. Rad1 {[%clk 0:02:09]}  Ba6 {[%clk 0:02:10]} 15. Qc2 {[%clk 0:02:06]}  Nxe3 {[%clk 0:01:58]} 16. Rxe3 {[%clk 0:02:07]}  e5 {[%clk 0:01:56]} 17. Ne1 {[%clk 0:01:53]}  f5 {[%clk 0:01:48]} 18. Ng5 {[%clk 0:01:53]}  h6 {[%clk 0:01:33]} 19. Qa4 {[%clk 0:01:49]}  Nb8 {[%clk 0:01:16]} 20. Qxd7 {[%clk 0:01:24]}  Rxd7 {[%clk 0:01:17]} 21. Ngf3 {[%clk 0:01:14]}  Kh7 {[%clk 0:01:13]} 22. d4 {[%clk 0:01:12]}  cxd4 {[%clk 0:01:04]} 23. cxd4 {[%clk 0:01:12]}  e4 {[%clk 0:01:04]} 24. Nh4 {[%clk 0:00:35]}  Bxd4 {[%clk 0:00:58]} 25. Ra3 {[%clk 0:00:15]}  Bxf2+ {[%clk 0:00:56]} 26. Kxf2 {[%clk 0:00:16]}  Rxd1 {[%clk 0:00:56]} 27. g4 {[%clk 0:00:17]}  e3+ {[%clk 0:00:53]} 28. Kg3 {[%clk 0:00:16]}  f4+ {[%clk 0:00:48]} 29. Kxf4 {[%clk 0:00:15]}  g5+ {[%clk 0:00:49]} 30. Kf5 {[%clk 0:00:15]}  gxh4 {[%clk 0:00:40]} 31. Nf3 {[%clk 0:00:15]}  e2 {[%clk 0:00:39]} 32. Rc3 {[%clk 0:00:13]}  Bc8+ {[%clk 0:00:38]} 33. Kf6 {[%clk 0:00:12]}  Nd7+ {[%clk 0:00:35]} 34. Kf7 {[%clk 0:00:12]}  Rf8+ {[%clk 0:00:34]} 35. Ke7 {[%clk 0:00:11]}  Rxf3 {[%clk 0:00:34]} 36. Bxf3 {[%clk 0:00:09]}  e1=Q+ {[%clk 0:00:35]} 37. Kf7 {[%clk 0:00:10]}  Ne5+ {[%clk 0:00:34]} 38. Kf6 {[%clk 0:00:10]}  Nxg4+ {[%clk 0:00:30]} 39. Bxg4 {[%clk 0:00:09]}  Qxc3+ {[%clk 0:00:30]} 40. bxc3 {[%clk 0:00:08]}  Bxg4 {[%clk 0:00:31]} 0-1


[Site "https://www.chess.com"]

[Event "Titled Tuesday Blitz September 13 Late 2022"]
[White "Golubev, Mikhail"]
[Black "Salem, A.R. Saleh"]
[WhiteFideId "14100983"]
[BlackFideId "9301348"]
[WhiteElo "2374"]
[BlackElo "2628"]
[Result "1/2-1/2"]
[Round "01"]
[TimeControl "180+1"]
[Date "2022.09.13"]
[WhiteClock "0:01:47"]
[BlackClock "0:01:49"]

1. e4 {[%clk 0:03:00]}  c5 {[%clk 0:02:58]} 2. Nf3 {[%clk 0:03:00]}  d6 {[%clk 0:02:59]} 3. d4 {[%clk 0:03:00]}  cxd4 {[%clk 0:02:59]} 4. Nxd4 {[%clk 0:03:01]}  Nf6 {[%clk 0:03:00]} 5. Nc3 {[%clk 0:03:01]}  a6 {[%clk 0:03:01]} 6. Bc4 {[%clk 0:03:01]}  e6 {[%clk 0:03:01]} 7. O-O {[%clk 0:03:00]}  b5 {[%clk 0:03:02]} 8. Bb3 {[%clk 0:03:00]}  Be7 {[%clk 0:03:02]} 9. f4 {[%clk 0:02:58]}  O-O {[%clk 0:02:50]} 10. e5 {[%clk 0:02:55]}  dxe5 {[%clk 0:02:45]} 11. fxe5 {[%clk 0:02:56]}  Nfd7 {[%clk 0:02:39]} 12. Be3 {[%clk 0:02:53]}  Nxe5 {[%clk 0:02:32]} 13. Qh5 {[%clk 0:02:52]}  Nbc6 {[%clk 0:02:22]} 14. Rad1 {[%clk 0:02:49]}  Qe8 {[%clk 0:02:15]} 15. Nxc6 {[%clk 0:02:40]}  Nxc6 {[%clk 0:02:16]} 16. Ne4 {[%clk 0:02:36]}  f5 {[%clk 0:02:06]} 17. Qxe8 {[%clk 0:02:07]}  Rxe8 {[%clk 0:02:07]} 18. Rxf5 {[%clk 0:02:01]}  Na5 {[%clk 0:02:08]} 19. Rff1 {[%clk 0:01:50]}  Nxb3 {[%clk 0:02:07]} 20. axb3 {[%clk 0:01:50]}  Bb7 {[%clk 0:02:06]} 21. Nd6 {[%clk 0:01:50]}  Bxd6 {[%clk 0:02:04]} 22. Rxd6 {[%clk 0:01:51]}  Rad8 {[%clk 0:01:57]} 23. Rfd1 {[%clk 0:01:46]}  Rxd6 {[%clk 0:01:49]} 24. Rxd6 {[%clk 0:01:47]} 1/2-1/2


[Site "https://www.chess.com"]

[Event "Titled Tuesday Blitz September 13 Late 2022"]
[White "Hansen, Eric"]
[Black "Vovk, Orest"]
[WhiteFideId "2606771"]
[BlackFideId "14113490"]
[WhiteElo "2568"]
[BlackElo "2203"]
[Result "1-0"]
[Round "01"]
[TimeControl "180+1"]
[Date "2022.09.13"]
[WhiteClock "0:00:08"]
[BlackClock "0:00:07"]

1. d4 {[%clk 0:02:56]}  h6 {[%clk 0:02:58]} 2. e4 {[%clk 0:02:53]}  g5 {[%clk 0:02:54]} 3. c3 {[%clk 0:02:53]}  Bg7 {[%clk 0:02:48]} 4. h4 {[%clk 0:02:53]}  d5 {[%clk 0:02:40]} 5. exd5 {[%clk 0:02:49]}  Qxd5 {[%clk 0:02:38]} 6. Nd2 {[%clk 0:02:50]}  g4 {[%clk 0:02:35]} 7. Ne2 {[%clk 0:02:49]}  Nf6 {[%clk 0:02:29]} 8. Nf4 {[%clk 0:02:48]}  Qf5 {[%clk 0:02:25]} 9. g3 {[%clk 0:02:48]}  Nc6 {[%clk 0:02:08]} 10. Bd3 {[%clk 0:02:43]}  Qd7 {[%clk 0:02:08]} 11. Nc4 {[%clk 0:02:39]}  Nd5 {[%clk 0:02:04]} 12. Nh5 {[%clk 0:02:36]}  Bf8 {[%clk 0:01:58]} 13. O-O {[%clk 0:02:32]}  Nb6 {[%clk 0:01:49]} 14. Re1 {[%clk 0:02:29]}  Kd8 {[%clk 0:01:43]} 15. Ne3 {[%clk 0:01:51]}  Nd5 {[%clk 0:01:37]} 16. Ng2 {[%clk 0:01:32]}  Qd6 {[%clk 0:01:29]} 17. c4 {[%clk 0:01:25]}  Ndb4 {[%clk 0:01:26]} 18. d5 {[%clk 0:01:22]}  Nxd3 {[%clk 0:01:23]} 19. Qxd3 {[%clk 0:01:11]}  Ne5 {[%clk 0:01:23]} 20. Rxe5 {[%clk 0:00:47]}  Qxe5 {[%clk 0:01:24]} 21. Nhf4 {[%clk 0:00:42]}  Bg7 {[%clk 0:01:22]} 22. Be3 {[%clk 0:00:39]}  Bf5 {[%clk 0:01:16]} 23. Qf1 {[%clk 0:00:38]}  Qxb2 {[%clk 0:01:13]} 24. Re1 {[%clk 0:00:33]}  Qxa2 {[%clk 0:01:09]} 25. Bc5 {[%clk 0:00:32]}  Re8 {[%clk 0:01:05]} 26. Ne3 {[%clk 0:00:31]}  Bd7 {[%clk 0:01:01]} 27. Nh5 {[%clk 0:00:20]}  Bh8 {[%clk 0:00:54]} 28. Qd3 {[%clk 0:00:17]}  b6 {[%clk 0:00:53]} 29. Bd4 {[%clk 0:00:17]}  Bxd4 {[%clk 0:00:52]} 30. Qxd4 {[%clk 0:00:17]}  a5 {[%clk 0:00:47]} 31. Ng7 {[%clk 0:00:14]}  Rg8 {[%clk 0:00:39]} 32. d6 {[%clk 0:00:14]}  exd6 {[%clk 0:00:32]} 33. Nd5 {[%clk 0:00:14]}  Kc8 {[%clk 0:00:19]} 34. Re7 {[%clk 0:00:05]}  Rxg7 {[%clk 0:00:14]} 35. Qxg7 {[%clk 0:00:03]}  Qxc4 {[%clk 0:00:14]} 36. Qxf7 {[%clk 0:00:03]}  Kb7 {[%clk 0:00:11]} 37. Rxd7 {[%clk 0:00:03]}  Rc8 {[%clk 0:00:11]} 38. Rxd6 {[%clk 0:00:02]}  a4 {[%clk 0:00:10]} 39. Rxb6+ {[%clk 0:00:02]}  Ka7 {[%clk 0:00:08]} 40. Rb4 {[%clk 0:00:03]}  Qc1+ {[%clk 0:00:07]} 41. Kg2 {[%clk 0:00:03]}  Qd1 {[%clk 0:00:07]} 42. Rb5 {[%clk 0:00:02]}  Qf3+ {[%clk 0:00:06]} 43. Qxf3 {[%clk 0:00:01]}  gxf3+ {[%clk 0:00:07]} 44. Kxf3 {[%clk 0:00:02]}  Rf8+ {[%clk 0:00:08]} 45. Ke3 {[%clk 0:00:02]}  c6 {[%clk 0:00:08]} 46. Ra5+ {[%clk 0:00:02]}  Kb7 {[%clk 0:00:09]} 47. Nc3 {[%clk 0:00:03]}  Re8+ {[%clk 0:00:08]} 48. Kd3 {[%clk 0:00:04]}  Rf8 {[%clk 0:00:07]} 49. Ne4 {[%clk 0:00:04]}  Rf3+ {[%clk 0:00:07]} 50. Ke2 {[%clk 0:00:04]}  Ra3 {[%clk 0:00:06]} 51. Rxa4 {[%clk 0:00:04]}  Rxa4 {[%clk 0:00:05]} 52. Nc5+ {[%clk 0:00:04]}  Kb6 {[%clk 0:00:06]} 53. Nxa4+ {[%clk 0:00:05]}  Kb5 {[%clk 0:00:07]} 54. Nc3+ {[%clk 0:00:06]}  Kc4 {[%clk 0:00:07]} 55. Kd2 {[%clk 0:00:07]}  Kd4 {[%clk 0:00:07]} 56. g4 {[%clk 0:00:07]}  Ke5 {[%clk 0:00:06]} 57. Ke3 {[%clk 0:00:07]}  c5 {[%clk 0:00:07]} 58. f4+ {[%clk 0:00:08]} 1-0


[Site "https://www.chess.com"]